[Event "Queens Festival Final Team 2022"]
[Site "Tornelo"]
[Date "2022.06.26"]
[Round "1.2"]
[White "Vujovic, Vera"]
[Black "Gomes, Maria Eduarda Papini"]
[Result "1-0"]
[ECO "B18"]
[WhiteElo "1353"]
[BlackElo "1618"]
[Annotator "NA RC"]
[PlyCount "41"]
[EventDate "2022.06.24"]
[EventType "team-tourn"]
[EventCountry "NET"]
[SourceTitle "playchess.com"]
[Source "ChessBase"]
[SourceQuality "1"]
[WhiteTeam "Serbia"]
[BlackTeam "Brazil"]
[WhiteTeamCountry "SRB"]
[BlackTeamCountry "BRA"]
[TimeControl "180+2"]

1. e4 {[%emt 0:00:02]} c6 {[%emt 0:00:08]} 2. d4 {[%emt 0:00:02]} d5 {[%emt 0:00:02]} 3. Nc3 {[%emt 0:00:02]} dxe4 {[%emt 0:00:05]} 4. Nxe4 {[%emt 0:00:01]} Bf5 {[%emt 0:00:01]} 5. Ng3 {[%emt 0:00:01]} Bg6 {[%emt 0:00:01]} 6. Nf3 {[%emt 0:00:02]} Nf6 {[%emt 0:00:04]} 7. Bd3 {[%emt 0:00:02]} Bxd3 {[%emt 0:00:04]} 8. Qxd3 {[%emt 0:00:02]} e6 {[%emt 0:00:01]} 9. c3 {[%emt 0:00:04]} Nbd7 {[%emt 0:00:02]} 10. O-O {[%emt 0:00:08]} Be7 {[%emt 0:00:09]} 11. Be3 {[%emt 0:00:08]} O-O {[%emt 0:00:01]} 12. Rfe1 {[%emt 0:00:05]} c5 {[%emt 0:00:03]} 13. Rad1 {[%emt 0:00:09]} cxd4 {[%emt 0:00:09]} 14. Bxd4 {[%emt 0:00:04]} Rc8 {[%emt 0:00:21]} 15. Ne4 {[%emt 0:00:27]} Nd5 {[%emt 0:01:04]} 16. Qe2 {[%emt 0:00:53]} Qc7 {[%emt 0:00:23]} 17. Neg5 {[%emt 0:00:22]} N7f6 {[%emt 0:00:53]} 18. Bxf6 {[%emt 0:00:20]} Nxf6 {[%emt 0:00:03]} 19. Nxe6 {[%emt 0:00:08]} fxe6 {[%emt 0:00:02]} 20. Qxe6+ {[%emt 0:00:03]} Rf7 {[%emt 0:00:01]} 21. Ng5 {[%emt 0:00:06]} 1-0

[Event "Queens Festival Final Team 2022"]
[Site "Tornelo"]
[Date "2022.06.26"]
[Round "1.3"]
[White "Perez Rodriguez, Jennifer"]
[Black "Ismayil, Malak"]
[Result "1-0"]
[ECO "C28"]
[WhiteElo "2251"]
[BlackElo "2001"]
[Annotator "TA"]
[PlyCount "159"]
[EventDate "2022.06.24"]
[EventType "team-tourn"]
[EventCountry "NET"]
[SourceTitle "playchess.com"]
[Source "ChessBase"]
[SourceQuality "1"]
[WhiteTeam "Paraguay"]
[BlackTeam "Azerbaijan"]
[WhiteTeamCountry "PAR"]
[BlackTeamCountry "AZE"]
[TimeControl "180+2"]

{[%evp 11,158,9,26,-65,-65,-116,-63,-52,-17,-54,-42,-64,-73,-71,-76,-79,-72,-75,-76,-77,-60,-152,-147,-116,0,0,0,0,29,24,31,35,36,32,48,31,61,56,50,52,62,0,27,38,50,47,47,0,113,142,124,120,387,384,331,-4,-8,-21,-43,-53,0,-98,-67,-62,-9,-10,-7,-6,-5,-8,0,0,3,0,85,85,93,89,106,109,132,138,145,127,129,105,135,85,109,112,155,75,178,166,180,113,2373,2386,2083,2175,1855,1780,1331,2042,29970,29971,29977,29975,29978,29979,29981,29982,29984,29984,29985,29984,29984,29985,29985,29985,29985,29984,29986,29987,29989,29990,29990,29990,29990,29991,29993,29992,29992,29993,29994,29992,29994,29995,29995,29996,29996,29997,29997,29998,29998,29998,29998,29999,29999]} 1. e4 {[%emt 0:00:02]} e5 {[%emt 0:00:05]} 2. Nc3 {[%emt 0:00:03]} Nc6 {[%emt 0:00:02]} 3. Bc4 {[%emt 0:00:01]} Nf6 {[%emt 0:00:06]} 4. d3 {[%emt 0:00:02]} d6 {[%emt 0:00:12]} 5. f4 {[%emt 0:00:03]} Be7 {[%emt 0:00:01]} 6. Nf3 {[%emt 0:00:02]} Bg4 {[%emt 0:00:03]} 7. f5 {[%emt 0:00:07] C28: Vienna Game: 2...Nf6 3 Bc4 Nc6.} (7. Bb5 $11) 7... Nd4 $15 {[%emt 0:00:03]} 8. Be3 {[%emt 0:00:09] [#]} (8. O-O $15) 8... Bxf3 {[%emt 0:00:34]} (8... c6 $1 $17 {Threatens to win with ...d5.} 9. Bxd4 exd4) 9. gxf3 {[%emt 0:00:02] [#] Black is slightly better.} Qd7 $146 {[%emt 0:00:02]} ({Predecessor:} 9... c6 10. Bxd4 exd4 11. Ne2 Qb6 12. Bb3 Nd7 13. Ng3 h5 14. Qe2 h4 15. Nf1 Bg5 {½-½ (75) Aakanksha,H (2238)-Zhuravleva,O (2278) Chess.com INT 2020}) 10. Rf1 {[%emt 0:00:48]} c6 {[%emt 0:00:17]} 11. Bxd4 {[%emt 0:00:17]} exd4 {[%emt 0:00:03]} 12. Ne2 {[%emt 0:00:01]} d5 {[%emt 0:00:07]} 13. Bb3 {[%emt 0:00:03]} Bb4+ {[%emt 0:00:07]} 14. c3 {[%emt 0:00:03]} dxc3 {[%emt 0:00:02]} 15. bxc3 {[%emt 0:00:00]} Ba5 {[%emt 0:00:02]} 16. Kf2 {[%emt 0:00:32]} (16. Qd2 $15) 16... O-O-O $17 {[%emt 0:00:09]} 17. Kg2 {[%emt 0:00:07]} g6 {[%emt 0:00:04]} (17... Qe7 $17 {[%cal Rd5e4]} 18. Qc2 Rhe8) 18. e5 $11 {[%emt 0:00:10]} Nh5 {[%emt 0:00:06]} 19. f6 {[%emt 0:00:03]} Qf5 {[%emt 0:00:30]} 20. d4 {[%emt 0:00:07]} Nf4+ {[%emt 0:00:09]} 21. Nxf4 {[%emt 0:00:03]} Qxf4 {[%emt 0:00:01]} 22. Qc1 {[%emt 0:00:10]} Qh4 {[%emt 0:00:11]} 23. Qe3 {[%emt 0:00:02]} g5 {[%emt 0:00:04]} 24. Rac1 {[%emt 0:00:05]} Rhg8 {[%emt 0:00:08]} 25. Bc2 {[%emt 0:00:07]} Kb8 {[%emt 0:00:10]} 26. h3 {[%emt 0:00:02]} (26. Kh1 $14) 26... Bb6 {[%emt 0:00:09]} 27. Bf5 {[%emt 0:00:04]} Rde8 {[%emt 0:00:07][%cal Oe8e5]} 28. Rce1 {[%emt 0:00:21]} Bc7 {[%emt 0:00:07]} 29. Qd3 {[%emt 0:00:04]} (29. Re2 $14 {feels stronger.}) 29... c5 {[%emt 0:00:05]} (29... h5 $1 $11) 30. Bxh7 $16 {[%emt 0:00:05]} Rh8 {[%emt 0:00:07]} 31. Bf5 {[%emt 0:00:01] Active counter play!} cxd4 $2 {[%emt 0:00:02][%mdl 8192]} (31... Qf4 $16) 32. cxd4 $18 {[%emt 0:00:01]} Bb6 {[%emt 0:00:02]} 33. Rb1 $2 {[%emt 0:00:03]} (33. Bg4 $18) 33... Qxd4 $11 {[%emt 0:00:03]} 34. Qxd4 {[%emt 0:00:02]} Bxd4 {[%emt 0:00:01]} 35. Rfe1 {[%emt 0:00:01]} Bxe5 {[%emt 0:00:02]} ({Black should play} 35... Rxe5 $15 36. Rxe5 Bxe5) 36. Red1 {[%emt 0:00:04]} (36. Bd7 $11 Rd8 37. Bc6 (37. Rxe5 Rxd7 38. Rxg5 Rd6 $11)) 36... Bxf6 {[%emt 0:00:01]} 37. Rxd5 {[%emt 0:00:02]} Rd8 {[%emt 0:00:03]} (37... Re2+ $15 38. Kf1 Rxa2) 38. Be4 {[%emt 0:00:09]} Rxd5 {[%emt 0:00:04]} 39. Bxd5 {[%emt 0:00:00][%mdl 4096] Endgame KRB-KRB} b6 {[%emt 0:00:02]} 40. Bxf7 {[%emt 0:00:02]} Rd8 {[%emt 0:00:01]} 41. Kg3 {[%emt 0:00:02]} Be5+ {[%emt 0:00:02]} 42. Kg4 {[%emt 0:00:01]} Rd4+ {[%emt 0:00:03]} (42... Bf4 $11) 43. Kxg5 $16 {[%emt 0:00:02]} Bf4+ {[%emt 0:00:02]} 44. Kg6 {[%emt 0:00:02]} Rd6+ {[%emt 0:00:03]} 45. Kf5 {[%emt 0:00:02]} Be3 {[%emt 0:00:02]} 46. Re1 {[%emt 0:00:02]} Bd4 {[%emt 0:00:02]} 47. Re8+ {[%emt 0:00:02]} Kc7 {[%emt 0:00:01]} 48. Kg4 {[%emt 0:00:03]} Rf6 {[%emt 0:00:03]} 49. Bb3 {[%emt 0:00:02]} ({Better is} 49. Re7+ Kd6 50. Rxa7) 49... a5 {[%emt 0:00:03]} 50. f4 {[%emt 0:00:02]} Bc3 {[%emt 0:00:02]} 51. Re6 {[%emt 0:00:03]} ({White should try} 51. Be6) 51... Rf8 {[%emt 0:00:02]} (51... Rxe6 $16 52. Bxe6 Kd6) 52. h4 $18 {[%emt 0:00:01]} b5 {[%emt 0:00:03]} 53. Bd5 {[%emt 0:00:02]} (53. h5 $18) 53... a4 $2 {[%emt 0:00:02][%mdl 8192]} (53... Rf6 $16 54. Rxf6 Bxf6) 54. Rc6+ {[%emt 0:00:02]} Kd7 {[%emt 0:00:01]} 55. Rxc3 {[%emt 0:00:01] KRB-KR} b4 {[%emt 0:00:02]} 56. Rc4 {[%emt 0:00:02]} Kd6 {[%emt 0:00:01]} 57. Be4 {[%emt 0:00:02] [#] Hoping for Rc6+.} b3 {[%emt 0:00:01]} 58. axb3 {[%emt 0:00:02] White mates.} axb3 {[%emt 0:00:04]} 59. Rb4 {[%emt 0:00:01]} Kc5 {[%emt 0:00:01]} 60. Rxb3 {[%emt 0:00:01]} Kd4 {[%emt 0:00:01]} 61. Bg6 {[%emt 0:00:03]} Rg8 {[%emt 0:00:02]} 62. f5 {[%emt 0:00:02][%cal Bf4f5,Bf5f6,Bf6f7][%mdl 32]} Ke5 {[%emt 0:00:01]} 63. Rb5+ {[%emt 0:00:01]} Kf6 {[%emt 0:00:01]} 64. Rb6+ {[%emt 0:00:01]} Ke5 {[%emt 0:00:02]} 65. Kg5 {[%emt 0:00:00]} Rc8 {[%emt 0:00:02]} 66. Rb5+ {[%emt 0:00:02]} Ke4 {[%emt 0:00:02]} 67. f6+ {[%emt 0:00:02]} Kf3 {[%emt 0:00:01]} 68. f7 {[%emt 0:00:03]} Kg3 {[%emt 0:00:01]} 69. Rf5 {[%emt 0:00:02]} Rf8 {[%emt 0:00:03]} 70. h5 {[%emt 0:00:01]} Kg2 {[%emt 0:00:01]} 71. h6 {[%emt 0:00:02]} Kg3 {[%emt 0:00:01]} 72. h7 {[%emt 0:00:01]} Kg2 {[%emt 0:00:02]} 73. Re5 {[%emt 0:00:03]} Kg3 {[%emt 0:00:03]} 74. Re8 {[%emt 0:00:01]} Rxf7 {[%emt 0:00:02]} 75. Bxf7 {[%emt 0:00:02]} Kg2 {[%emt 0:00:01]} 76. h8=Q {[%emt 0:00:01]} Kg3 {[%emt 0:00:01]} 77. Qc3+ {[%emt 0:00:02]} Kf2 {[%emt 0:00:02]} 78. Rb8 {[%emt 0:00:02]} Ke2 {[%emt 0:00:02]} 79. Rb2+ {[%emt 0:00:00]} Kd1 {[%emt 0:00:02]} 80. Qd2# {[%emt 0:00:01] Weighted Error Value: White=0.31/Black=0.38} 1-0

[Event "Queens Festival Final Team 2022"]
[Site "Tornelo"]
[Date "2022.06.26"]
[Round "1.3"]
[White "Mammadova, Aysel"]
[Black "Mayeregger Gonzalez, Fiorella"]
[Result "1-0"]
[ECO "B22"]
[WhiteElo "1893"]
[BlackElo "1284"]
[Annotator "NA RC"]
[PlyCount "73"]
[EventDate "2022.06.24"]
[EventType "team-tourn"]
[EventCountry "NET"]
[SourceTitle "playchess.com"]
[Source "ChessBase"]
[SourceQuality "1"]
[WhiteTeam "Azerbaijan"]
[BlackTeam "Paraguay"]
[WhiteTeamCountry "AZE"]
[BlackTeamCountry "PAR"]
[TimeControl "180+2"]

1. e4 {[%emt 0:00:02]} c5 {[%emt 0:00:06]} 2. c3 {[%emt 0:00:03]} e6 {[%emt 0:00:02]} 3. d4 {[%emt 0:00:02]} cxd4 {[%emt 0:00:06]} 4. cxd4 {[%emt 0:00:05]} Qc7 {[%emt 0:00:03]} 5. Nf3 {[%emt 0:00:03]} Bb4+ {[%emt 0:00:06]} 6. Bd2 {[%emt 0:00:03]} Bxd2+ {[%emt 0:00:13]} 7. Nbxd2 {[%emt 0:00:03]} d6 {[%emt 0:00:07]} 8. Bd3 {[%emt 0:00:03]} Nc6 {[%emt 0:00:02]} 9. O-O {[%emt 0:00:02]} Bd7 {[%emt 0:00:04]} 10. Rc1 {[%emt 0:00:03]} Qd8 {[%emt 0:00:04]} 11. d5 {[%emt 0:00:04]} Nb4 {[%emt 0:00:14]} 12. Bb1 {[%emt 0:00:03]} Rc8 {[%emt 0:00:04]} 13. Rxc8 {[%emt 0:00:05]} Qxc8 {[%emt 0:00:03]} 14. dxe6 {[%emt 0:00:01]} Bxe6 {[%emt 0:00:06]} 15. Nd4 {[%emt 0:00:10]} Nxa2 {[%emt 0:00:17]} 16. Bxa2 {[%emt 0:00:05]} Bxa2 {[%emt 0:00:04]} 17. Qa4+ {[%emt 0:00:02]} Qd7 {[%emt 0:00:14]} 18. Qxa2 {[%emt 0:00:03]} a6 {[%emt 0:00:02]} 19. Re1 {[%emt 0:00:10]} Ne7 {[%emt 0:00:11]} 20. N2f3 {[%emt 0:00:07]} O-O {[%emt 0:00:02]} 21. Qb3 {[%emt 0:00:04]} Rc8 {[%emt 0:00:12]} 22. h3 {[%emt 0:00:04]} Qc7 {[%emt 0:00:04]} 23. Ng5 {[%emt 0:00:08]} Ng6 {[%emt 0:00:13]} 24. Nf5 {[%emt 0:00:04]} Ne5 {[%emt 0:00:03]} 25. Rd1 {[%emt 0:00:04]} Rd8 {[%emt 0:00:19]} 26. f4 {[%emt 0:00:14]} Ng6 {[%emt 0:00:16]} 27. Qe3 {[%emt 0:00:07]} h6 {[%emt 0:00:11]} 28. Nf3 {[%emt 0:00:02]} Ne7 {[%emt 0:00:19]} 29. Nxe7+ {[%emt 0:00:07]} Qxe7 {[%emt 0:00:00]} 30. e5 {[%emt 0:00:02]} dxe5 {[%emt 0:00:04]} 31. Rxd8+ {[%emt 0:00:03]} Qxd8 {[%emt 0:00:00]} 32. Nxe5 {[%emt 0:00:02]} Qd1+ {[%emt 0:00:03]} 33. Kh2 {[%emt 0:00:02]} Qd6 {[%emt 0:00:05]} 34. Qb3 {[%emt 0:00:04]} Qe7 {[%emt 0:00:04]} 35. Qd5 {[%emt 0:00:04]} Kf8 {[%emt 0:00:04]} 36. b4 {[%emt 0:00:05]} Qe8 {[%emt 0:00:04]} 37. Qxb7 {[%emt 0:00:04]} 1-0

[Event "Queens Festival Final Team 2022"]
[Site "Tornelo"]
[Date "2022.06.26"]
[Round "1.3"]
[White "Perez, Dalila"]
[Black "Khalilova, Khadija"]
[Result "0-1"]
[ECO "D30"]
[WhiteElo "1799"]
[BlackElo "1777"]
[Annotator "NA RC"]
[PlyCount "98"]
[EventDate "2022.06.24"]
[EventType "team-tourn"]
[EventCountry "NET"]
[SourceTitle "playchess.com"]
[Source "ChessBase"]
[SourceQuality "1"]
[WhiteTeam "Paraguay"]
[BlackTeam "Azerbaijan"]
[WhiteTeamCountry "PAR"]
[BlackTeamCountry "AZE"]
[TimeControl "180+2"]

1. d4 {[%emt 0:00:02]} d5 {[%emt 0:00:06]} 2. Nf3 {[%emt 0:00:01]} e6 {[%emt 0:00:03]} 3. e3 {[%emt 0:00:02]} Nf6 {[%emt 0:00:01]} 4. c4 {[%emt 0:00:02]} c6 {[%emt 0:00:04]} 5. g3 {[%emt 0:00:02]} g6 {[%emt 0:00:04]} 6. Bg2 {[%emt 0:00:04]} Bg7 {[%emt 0:00:02]} 7. Nbd2 {[%emt 0:00:03]} O-O {[%emt 0:00:02]} 8. O-O {[%emt 0:00:01]} Re8 {[%emt 0:00:05]} 9. Qc2 {[%emt 0:00:04]} Nbd7 {[%emt 0:00:04]} 10. Rd1 {[%emt 0:00:04]} Rb8 {[%emt 0:00:05]} 11. e4 {[%emt 0:00:02]} dxe4 {[%emt 0:00:04]} 12. Nxe4 {[%emt 0:00:01]} Nxe4 {[%emt 0:00:02]} 13. Qxe4 {[%emt 0:00:04]} Nf6 {[%emt 0:00:02]} 14. Qc2 {[%emt 0:00:03]} Bd7 {[%emt 0:00:12]} 15. Bf4 {[%emt 0:00:02]} Rc8 {[%emt 0:00:05]} 16. Rac1 {[%emt 0:00:06]} Nh5 {[%emt 0:00:03]} 17. Be3 {[%emt 0:00:05]} b5 {[%emt 0:00:07]} 18. Qe2 {[%emt 0:00:09]} a6 {[%emt 0:00:03]} 19. a4 {[%emt 0:00:14]} Qa5 {[%emt 0:00:05]} 20. c5 {[%emt 0:00:17]} bxa4 {[%emt 0:00:11]} 21. Ra1 {[%emt 0:00:09]} Qb5 {[%emt 0:00:03]} 22. Qc2 {[%emt 0:00:06]} Rb8 {[%emt 0:00:03]} 23. Rdb1 {[%emt 0:00:01]} e5 {[%emt 0:00:07]} 24. dxe5 {[%emt 0:00:03]} Bf5 {[%emt 0:00:02]} 25. Qd2 {[%emt 0:00:29]} Bxb1 {[%emt 0:00:03]} 26. Rxb1 {[%emt 0:00:01]} Red8 {[%emt 0:00:03]} 27. Qc3 {[%emt 0:00:03]} Bf8 {[%emt 0:00:03]} 28. Bd4 {[%emt 0:00:05]} Ng7 {[%emt 0:00:04]} 29. Ng5 {[%emt 0:00:05]} Nf5 {[%emt 0:00:04]} 30. e6 {[%emt 0:00:10]} Nxd4 {[%emt 0:00:12]} 31. exf7+ {[%emt 0:00:01]} Kg7 {[%emt 0:00:03]} 32. Ne6+ {[%emt 0:00:14]} Kxf7 {[%emt 0:00:03]} 33. Nxd4 {[%emt 0:00:01]} Qxc5 {[%emt 0:00:14]} 34. Qf3+ {[%emt 0:00:05]} Kg8 {[%emt 0:00:06]} 35. Nxc6 {[%emt 0:00:03]} Qc2 {[%emt 0:00:11]} 36. Rf1 {[%emt 0:00:12]} Rb3 {[%emt 0:00:02]} 37. Qf4 {[%emt 0:00:36]} Rd6 {[%emt 0:00:05]} 38. Qxa4 {[%emt 0:00:03]} Rxb2 {[%emt 0:00:07]} 39. Qxa6 {[%emt 0:00:01]} Rf6 {[%emt 0:00:12]} 40. Qa7 {[%emt 0:00:16]} Rxc6 {[%emt 0:00:04]} 41. Bxc6 {[%emt 0:00:02]} Qxc6 {[%emt 0:00:02]} 42. Qd4 {[%emt 0:00:01]} Rc2 {[%emt 0:00:03]} 43. h4 {[%emt 0:00:03]} Bc5 {[%emt 0:00:04]} 44. Qd3 {[%emt 0:00:04]} Bb6 {[%emt 0:00:02]} 45. Qb3+ {[%emt 0:00:02]} Kg7 {[%emt 0:00:03]} 46. Qb4 {[%emt 0:00:04]} Rc3 {[%emt 0:00:02]} 47. Qb2 {[%emt 0:00:02]} Kg8 {[%emt 0:00:03]} 48. Rb1 {[%emt 0:00:05]} Rxg3+ {[%emt 0:00:03]} 49. Kf1 {[%emt 0:00:02]} Qc4+ {[%emt 0:00:05]} 0-1

[Event "Queens Festival Final Team 2022"]
[Site "Tornelo"]
[Date "2022.06.26"]
[Round "1.3"]
[White "Bakhshizada, Asnad"]
[Black "Mayeregger Gonzalez, Renata"]
[Result "1-0"]
[ECO "A60"]
[WhiteElo "1052"]
[BlackElo "1461"]
[Annotator "NA RC"]
[PlyCount "101"]
[EventDate "2022.06.24"]
[EventType "team-tourn"]
[EventCountry "NET"]
[SourceTitle "playchess.com"]
[Source "ChessBase"]
[SourceQuality "1"]
[WhiteTeam "Azerbaijan"]
[BlackTeam "Paraguay"]
[WhiteTeamCountry "AZE"]
[BlackTeamCountry "PAR"]
[TimeControl "180+2"]

1. d4 {[%emt 0:00:02]} c5 {[%emt 0:00:06]} 2. d5 {[%emt 0:00:03]} d6 {[%emt 0:00:02]} 3. c4 {[%emt 0:00:02]} e6 {[%emt 0:00:02]} 4. Nc3 {[%emt 0:00:03]} Nf6 {[%emt 0:00:02]} 5. e4 {[%emt 0:00:02]} e5 {[%emt 0:00:02]} 6. Nf3 {[%emt 0:00:04]} Bg4 {[%emt 0:00:02]} 7. Bg5 {[%emt 0:00:02]} h6 {[%emt 0:00:03]} 8. Bh4 {[%emt 0:00:03]} Be7 {[%emt 0:00:04]} 9. h3 {[%emt 0:00:02]} Bh5 {[%emt 0:00:11]} 10. Be2 {[%emt 0:00:03]} Nbd7 {[%emt 0:00:06]} 11. O-O {[%emt 0:00:10]} O-O {[%emt 0:00:04]} 12. a3 {[%emt 0:00:15]} Bg6 {[%emt 0:00:07]} 13. Bd3 {[%emt 0:00:05]} Bh5 {[%emt 0:00:27]} 14. b4 {[%emt 0:00:05]} b6 {[%emt 0:00:09]} 15. b5 {[%emt 0:00:04]} Nh7 {[%emt 0:00:14]} 16. Bxe7 {[%emt 0:00:05]} Qxe7 {[%emt 0:00:04]} 17. Be2 {[%emt 0:00:02]} Ng5 {[%emt 0:00:11]} 18. Nxg5 {[%emt 0:00:04]} Bxe2 {[%emt 0:00:02]} 19. Qxe2 {[%emt 0:00:04]} Qxg5 {[%emt 0:00:02]} 20. Rad1 {[%emt 0:00:10]} f5 {[%emt 0:00:04]} 21. exf5 {[%emt 0:00:03]} Rxf5 {[%emt 0:00:03]} 22. Ne4 {[%emt 0:00:02]} Qe7 {[%emt 0:00:13]} 23. Qg4 {[%emt 0:00:03]} Raf8 {[%emt 0:00:09]} 24. Qg6 {[%emt 0:00:10]} Qh4 {[%emt 0:00:31]} 25. Qe6+ {[%emt 0:00:33]} Kh8 {[%emt 0:00:08]} 26. Ng3 {[%emt 0:00:05]} R5f7 {[%emt 0:00:09]} 27. Rc1 {[%emt 0:00:10]} Qf6 {[%emt 0:00:06]} 28. Qxf6 {[%emt 0:00:06]} Rxf6 {[%emt 0:00:02]} 29. Ne4 {[%emt 0:00:02]} Rg6 {[%emt 0:00:04]} 30. Rc3 {[%emt 0:00:03]} Rf4 {[%emt 0:00:05]} 31. f3 {[%emt 0:00:05]} Kg8 {[%emt 0:00:09]} 32. Ra1 {[%emt 0:00:04]} Kf7 {[%emt 0:00:04]} 33. a4 {[%emt 0:00:03]} Ke7 {[%emt 0:00:10]} 34. a5 {[%emt 0:00:01]} Nf6 {[%emt 0:00:02]} 35. axb6 {[%emt 0:00:06]} axb6 {[%emt 0:00:03]} 36. Ra7+ {[%emt 0:00:05]} Nd7 {[%emt 0:00:02]} 37. Rb7 {[%emt 0:00:10]} Rf8 {[%emt 0:00:04]} 38. Ra3 {[%emt 0:00:05]} Rd8 {[%emt 0:00:02]} 39. Raa7 {[%emt 0:00:05]} Ke8 {[%emt 0:00:02]} 40. Rc7 {[%emt 0:00:08]} h5 {[%emt 0:00:02]} 41. Rc6 {[%emt 0:00:06]} Rh6 {[%emt 0:00:03]} 42. Rxd6 {[%emt 0:00:08]} Rxd6 {[%emt 0:00:01]} 43. Nxd6+ {[%emt 0:00:01]} Ke7 {[%emt 0:00:02]} 44. Nf5+ {[%emt 0:00:03]} Kf6 {[%emt 0:00:01]} 45. Ng3 {[%emt 0:00:02]} g6 {[%emt 0:00:02]} 46. Kf2 {[%emt 0:00:07]} Nb8 {[%emt 0:00:04]} 47. Rb7 {[%emt 0:00:02]} Nd7 {[%emt 0:00:02]} 48. Ke3 {[%emt 0:00:04]} Nf8 {[%emt 0:00:03]} 49. Rxb6+ {[%emt 0:00:03]} Kg5 {[%emt 0:00:05]} 50. Ne4+ {[%emt 0:00:04]} Kf5 {[%emt 0:00:02]} 51. Rf6# {[%emt 0:00:03]} 1-0

[Event "Queens Festival Final Team 2022"]
[Site "Tornelo"]
[Date "2022.06.26"]
[Round "1.4"]
[White "Song, Yuxin"]
[Black "Shriyan santosh Priyasha"]
[Result "1-0"]
[ECO "B06"]
[WhiteElo "2317"]
[BlackElo "1597"]
[Annotator "TA"]
[PlyCount "55"]
[EventDate "2022.06.24"]
[EventType "team-tourn"]
[EventCountry "NET"]
[SourceTitle "playchess.com"]
[Source "ChessBase"]
[SourceQuality "1"]
[WhiteTeam "China"]
[BlackTeam "MAW"]
[WhiteTeamCountry "CHN"]
[TimeControl "180+2"]

{[%evp 9,55,46,60,46,123,43,45,35,53,0,53,36,23,41,90,84,76,56,75,77,82,81,80,83,80,28,104,102,139,144,190,196,161,138,285,253,345,380,356,343,350,325,1234,1222,1457,1174,1622,1583]} 1. e4 {[%emt 0:00:02]} g6 {[%emt 0:00:05]} 2. d4 {[%emt 0:00:02]} Bg7 {[%emt 0:00:01]} 3. Nc3 {[%emt 0:00:01]} d6 {[%emt 0:00:02]} 4. Nf3 {[%emt 0:00:01]} Nd7 {[%emt 0:00:10]} 5. Bc4 {[%emt 0:00:03]} e6 {[%emt 0:00:02]} 6. O-O {[%emt 0:00:02] B06: Modern Defence.} Ngf6 {[%emt 0:00:01]} (6... a6 $14) 7. Bg5 {[%emt 0:00:03]} (7. e5 $16) 7... h6 $14 {[%emt 0:00:03] [#]} 8. Bf4 $146 {[%emt 0:00:02] White is slightly better.} ({Predecessor:} 8. Be3 Ng4 9. Qd2 Nxe3 10. fxe3 O-O 11. Rad1 Qe7 12. Qf2 Nb6 13. Bb3 {½-½ (13) Schmidt,N (1430)-Jensen,M (1447) Neumuenster 2011}) 8... O-O {[%emt 0:00:04]} 9. Qd2 {[%emt 0:00:01]} ({But not} 9. e5 Nh5 10. Be3 dxe5 $11) ({White should play} 9. h3 $14) 9... Kh7 {[%emt 0:00:02]} (9... g5 $11 10. Be3 Ng4) 10. h3 {[%emt 0:00:03]} a6 {[%emt 0:00:07]} 11. a4 {[%emt 0:00:02]} Nb6 {[%emt 0:00:04]} (11... b6 $14) 12. Bd3 {[%emt 0:00:03] 0x0.0022fc2b824adp-1022s more active pieces. The black rooks are badly placed.} Nbd7 {[%emt 0:00:16][%cal Oe6e5]} 13. Rad1 {[%emt 0:00:04]} Qe7 {[%emt 0:00:17]} 14. e5 {[%emt 0:00:05]} dxe5 {[%emt 0:00:05]} 15. dxe5 {[%emt 0:00:01]} Nd5 {[%emt 0:00:02]} 16. Nxd5 {[%emt 0:00:06]} exd5 {[%emt 0:00:00]} 17. Rfe1 {[%emt 0:00:01]} ({White should try} 17. c3 $16) 17... Nb6 {[%emt 0:00:07]} (17... Nc5 $11 {remains equal.}) 18. a5 $36 {[%emt 0:00:04][%mdl 2048] Keeping Black busy.} Nd7 {[%emt 0:00:10]} 19. b4 {[%emt 0:00:18] Inhibits Nc5.} Re8 {[%emt 0:00:09] [#]} (19... Nb8 $16 {is a better defense.} 20. c3 Qe8) 20. e6 $1 $18 {[%emt 0:00:16]} fxe6 {[%emt 0:00:06]} 21. Bxc7 {[%emt 0:00:01] Threatens to win with c4.} Nf6 {[%emt 0:00:09] Black cannot hold the game after this.} (21... e5 $16) 22. Be5 {[%emt 0:00:03]} Qf7 {[%emt 0:00:09]} 23. Nh4 {[%emt 0:00:04]} Ne4 {[%emt 0:00:12]} 24. Rxe4 {[%emt 0:00:01]} ({Don't take} 24. Bxe4 dxe4 25. Rxe4 Bxe5 $18) 24... dxe4 {[%emt 0:00:08]} 25. Bxe4 {[%emt 0:00:02][%cal Bd3e4,Be4g6,Bg6e8][%mdl 32]} Kg8 $2 {[%emt 0:00:16] [#]} (25... Bxe5 26. Nxg6 Qxg6 27. Bxg6+ Kxg6) 26. Bxg6 {[%emt 0:00:03] White is clearly winning.} Qe7 {[%emt 0:00:04]} 27. Bxg7 {[%emt 0:00:07]} Qxg7 {[%emt 0:00:09]} 28. Bxe8 {[%emt 0:00:02] Weighted Error Value: White=0.16 (very precise) /Black=0.38} 1-0

[Event "Queens Festival Final Team 2022"]
[Site "Tornelo"]
[Date "2022.06.26"]
[Round "1.4"]
[White "Cui, Wen"]
[Black "Nkhoma, Desiderata"]
[Result "1-0"]
[ECO "B76"]
[WhiteElo "1718"]
[BlackElo "1465"]
[Annotator "NA RC"]
[PlyCount "47"]
[EventDate "2022.06.24"]
[EventType "team-tourn"]
[EventCountry "NET"]
[SourceTitle "playchess.com"]
[Source "ChessBase"]
[SourceQuality "1"]
[WhiteTeam "China"]
[BlackTeam "MAW"]
[WhiteTeamCountry "CHN"]
[TimeControl "180+2"]

1. e4 {[%emt 0:00:15]} c5 {[%emt 0:01:08]} 2. Nf3 {[%emt 0:00:06]} d6 {[%emt 0:00:05]} 3. d4 {[%emt 0:00:02]} cxd4 {[%emt 0:00:05]} 4. Nxd4 {[%emt 0:00:03]} Nf6 {[%emt 0:00:04]} 5. Nc3 {[%emt 0:00:02]} Nc6 {[%emt 0:00:09]} 6. Be3 {[%emt 0:00:07]} g6 {[%emt 0:00:02]} 7. f3 {[%emt 0:00:08]} Bg7 {[%emt 0:00:03]} 8. Qd2 {[%emt 0:00:02]} O-O {[%emt 0:00:04]} 9. O-O-O {[%emt 0:00:03]} Bd7 {[%emt 0:00:08]} 10. g4 {[%emt 0:00:15]} Nxd4 {[%emt 0:00:05]} 11. Bxd4 {[%emt 0:00:02]} Rc8 {[%emt 0:00:06]} 12. h4 {[%emt 0:00:04]} e5 {[%emt 0:00:07]} 13. Be3 {[%emt 0:00:03]} b5 {[%emt 0:00:11]} 14. Qxd6 {[%emt 0:00:08]} a5 {[%emt 0:00:08]} 15. g5 {[%emt 0:00:10]} b4 {[%emt 0:00:06]} 16. gxf6 {[%emt 0:00:05]} bxc3 {[%emt 0:00:03]} 17. fxg7 {[%emt 0:00:07]} cxb2+ {[%emt 0:00:03]} 18. Kb1 {[%emt 0:00:02]} Re8 {[%emt 0:00:11]} 19. Qxd7 {[%emt 0:00:02]} Qf6 {[%emt 0:00:21]} 20. Be2 {[%emt 0:00:09]} Red8 {[%emt 0:00:09]} 21. Qa4 {[%emt 0:00:11]} Rxd1+ {[%emt 0:00:12]} 22. Rxd1 {[%emt 0:00:03]} Qxh4 {[%emt 0:00:04]} 23. Qxa5 {[%emt 0:00:06]} Kxg7 {[%emt 0:00:06]} 24. Qxe5+ {[%emt 0:00:03]} 1-0